bitfinex/quotes_ETHUSD_20241119
["timestamp","ask_amount","ask_price","bid_price","bid_amount"]
[1731980715752,0.1432941,3158.3,3158.1,0.3172]
[1731980716120,3.16636,3158.2,3158.1,0.3172]
[1731980716452,4.63510984,3158.2,3158.1,0.3172]
[1731980716622,7.80146984,3158.2,3158.1,0.3172]
[1731980716826,3.16636,3158.2,3158.1,0.3172]
[1731980717022,4.77840394,3158.3,3158.1,0.3172]
[1731980717023,7.94467394,3158.3,3158.1,0.3172]
[1731980717223,0.1432941,3158.3,3158.1,0.3172]
[1731980717454,3.16636,3158.2,3158.1,0.3172]
[1731980717813,3.16636,3158.2,3157.0,4.25585423]
[1731980717814,0.7959,3158.1,3157.5,0.3172]
[1731980718011,3.16696,3157.6,3157.5,0.3172]
[1731980718721,3.16696,3157.6,3157.0,0.3172]
[1731980718926,3.16716,3157.4,3157.0,0.3172]
[1731980719236,3.16726,3157.3,3157.0,0.3172]
[1731980719442,3.16716,3157.4,3157.0,0.3172]
[1731980719820,3.16716,3157.4,3156.7,0.3172]
[1731980720216,3.16742,3157.2,3156.7,0.3172]
[1731980720960,3.16742,3157.2,3156.6,0.3172]
[1731980721163,3.16765,3157.0,3156.6,0.3172]
[1731980721333,3.16767,3156.9,3156.6,0.3172]
[1731980721542,3.16765,3157.0,3156.6,0.3172]
[1731980721850,3.16786,3156.7,3156.1,0.3172]
[1731980722162,3.16814,3156.5,3156.1,0.3172]
[1731980722366,3.16786,3156.7,3156.1,0.3172]
[1731980722550,7.8074601,3156.7,3156.1,0.3172]
[1731980722758,3.16786,3156.7,3156.1,0.3172]
[1731980723074,3.16797,3156.6,3156.1,0.3172]
[1731980724981,4.63811932,3156.9,3156.4,0.3172]
[1731980725211,4.63811932,3157.1,3156.6,3.48509]
[1731980725488,7.80638052,3157.4,3156.8,3.48492]
[1731980725916,7.80646052,3157.3,3156.8,3.48492]
[1731980726099,3.16728,3157.3,3156.8,0.3172]
[1731980726506,7.80648052,3157.3,3156.7,0.3172]
[1731980726705,3.16743,3157.2,3156.7,0.3172]
[1731980727381,3.16756,3157.0,3156.7,0.3172]
[1731980727586,3.16766,3156.9,3156.8,0.3172]
[1731980728503,3.16766,3156.9,3155.8,0.3172]
[1731980728814,3.1682,3156.4,3155.8,3.48595]
[1731980729017,3.16837,3156.2,3155.8,0.3172]
[1731980729523,3.16837,3156.2,3155.6,0.3172]
[1731980730283,3.16867,3155.9,3155.6,0.3172]
[1731980730489,3.16867,3155.9,3155.4,0.3172]
[1731980731028,3.16865,3156.0,3155.6,0.3172]
[1731980731350,3.16865,3156.0,3155.8,0.3172]
[1731980732431,3.16865,3156.0,3155.9,0.3172]
[1731980733129,3.93915,3156.0,3155.9,0.3172]
[1731980733434,3.93915,3156.0,3155.3,0.3172]
[1731980733435,3.1688,3155.8,3155.3,0.3172]
[1731980733627,3.1688,3155.8,3155.5,0.3172]
[1731980733930,3.1688,3155.8,3155.7,0.3172]
[1731980734729,2.8522,3155.8,3155.7,0.3172]
[1731980734958,2.8522,3155.8,3155.3,3.48646]
[1731980735129,2.8522,3155.8,3155.5,0.3172]
[1731980736184,2.8522,3155.8,3155.6,0.3172]
[1731980736314,3.16886,3155.7,3155.6,0.3172]
[1731980736514,2.8522,3155.8,3155.6,0.3172]
[1731980736711,3.16867,3155.9,3155.6,0.3172]
[1731980736953,3.16886,3155.7,3155.6,0.3172]
[1731980737170,3.16886,3155.7,3155.3,0.3172]
[1731980738077,3.16867,3155.9,3155.3,0.3172]
[1731980738078,3.16866,3155.9,3155.3,0.3172]
[1731980738240,3.16917,3155.4,3154.8,3.48696]
[1731980738566,3.16917,3155.4,3154.3,0.01]
[1731980738567,3.16899,3155.6,3155.1,0.3172]
[1731980738747,3.16909,3155.5,3155.1,0.3172]
[1731980739058,3.16913,3155.5,3155.1,0.3172]
[1731980739657,3.16913,3155.5,3155.0,0.3165]
[1731980739864,3.1689,3155.7,3155.0,3.48602]
[1731980740221,3.16897,3155.6,3155.0,3.48602]
[1731980740420,3.16908,3155.5,3155.0,3.48602]
[1731980741242,3.1689,3155.7,3155.0,3.48602]
[1731980741574,3.16898,3155.6,3155.0,3.48602]
[1731980741866,0.7694,3155.8,3155.4,0.3165]
[1731980742076,3.9951,3156.1,3155.6,0.3165]
[1731980742237,3.16873,3155.9,3155.6,0.3165]
[1731980742424,0.8266,3156.1,3155.6,3.48546]
[1731980742621,0.8266,3156.1,3155.6,0.3165]
[1731980743059,3.16879,3155.8,3155.3,0.3165]
[1731980743223,0.8266,3156.1,3155.3,0.3165]
[1731980743426,3.16876,3155.9,3155.3,0.3165]
[1731980743874,3.16831,3156.3,3155.7,0.3165]
[1731980744084,3.16831,3156.3,3155.7,3.4853]
[1731980744259,3.16855,3156.1,3155.7,0.3165]
[1731980744630,2.85211,3155.9,3155.4,0.3165]
[1731980744928,2.85211,3155.9,3155.5,0.3165]
[1731980745329,3.16855,3156.1,3155.5,0.3165]
[1731980745523,3.16862,3156.0,3155.5,0.3165]
[1731980745854,3.16855,3156.1,3155.5,0.3165]
[1731980747130,3.16868,3155.9,3155.5,0.3165]
[1731980748731,3.16859,3156.0,3155.5,0.3165]
[1731980749071,3.16855,3156.1,3155.5,0.3165]
[1731980749372,3.16868,3155.9,3155.5,0.3165]
[1731980749529,3.16868,3155.9,3155.3,0.3165]
[1731980749730,3.97046,3155.8,3155.3,0.3165]
[1731980750026,0.8017,3155.8,3155.3,0.3165]
[1731980750226,3.97049,3155.8,3155.3,0.3165]
[1731980750472,3.16887,3155.7,3155.3,0.3165]
[1731980750671,3.16887,3155.7,3155.2,0.3165]
[1731980751180,3.16927,3155.3,3155.2,0.3165]
[1731980751396,0.7554,3155.2,3154.5,0.3165]
[1731980751544,3.16979,3154.8,3154.6,0.3165]
[1731980752340,3.16987,3154.7,3154.6,0.3165]
[1731980752647,3.16987,3154.7,3154.1,0.3165]
[1731980752981,3.17006,3154.6,3154.1,0.3165]
[1731980753277,6.33967,3154.8,3154.1,3.48691]
[1731980753460,3.16994,3154.7,3154.3,0.3165]
[1731980753868,3.16961,3155.0,3154.5,0.3165]
[1731980754660,3.16939,3155.2,3154.7,0.3165]
[1731980754879,3.16939,3155.2,3154.7,0.665141]
[1731980755097,3.16953,3155.1,3154.7,0.3165]
[1731980755400,3.16957,3155.0,3154.7,0.3165]
[1731980755769,3.16957,3155.0,3154.5,0.3165]
[1731980756299,0.7733,3155.4,3154.5,0.3165]
[1731980756503,3.16951,3155.1,3154.5,3.48657]
[1731980756874,3.16957,3155.0,3154.5,3.48657]
[1731980757290,3.16968,3154.9,3154.6,0.3165]
[1731980758084,3.16987,3154.7,3154.6,0.3165]
[1731980758286,3.16987,3154.7,3154.2,0.3165]
[1731980758916,3.17009,3154.5,3154.2,0.3165]
[1731980759201,0.8211,3154.8,3154.4,0.3165]
[1731980759403,3.16989,3154.7,3154.4,0.3165]
[1731980759559,3.16997,3154.6,3154.4,0.3165]
[1731980759994,3.16997,3154.6,3154.2,0.3165]
[1731980760783,3.16957,3155.0,3154.4,3.48661]
[1731980761010,0.7908,3155.2,3154.4,0.3165]
[1731980761206,3.16977,3154.8,3154.4,0.3165]
[1731980761412,6.33925,3155.0,3154.4,0.3165]
[1731980762329,3.16968,3154.9,3154.5,0.3165]
[1731980762484,3.16977,3154.8,3154.5,0.3165]
[1731980763120,3.16977,3154.8,3154.4,0.3165]
[1731980763698,3.16947,3155.1,3154.4,0.3165]
[1731980763897,3.16997,3154.6,3154.4,0.3165]
[1731980764314,3.16997,3154.6,3154.0,3.17051]
[1731980764315,3.16997,3154.6,3154.1,0.3165]
[1731980764537,3.17008,3154.5,3154.1,0.3165]
[1731980764833,2.85348,3154.5,3154.1,0.3165]
[1731980765895,3.17021,3154.4,3153.9,0.3165]
[1731980766127,3.17021,3154.4,3153.9,3.48713]
[1731980767621,3.17021,3154.4,3153.9,0.3165]
[1731980771820,3.17021,3154.4,3153.9,3.48717]
[1731980772070,3.17021,3154.4,3154.1,0.3165]
[1731980772934,3.17021,3154.4,3154.0,0.3165]
[1731980773551,3.17001,3154.6,3154.0,0.3165]
[1731980773761,0.8259,3154.7,3154.2,3.48681]
[1731980773966,3.16967,3154.9,3154.4,0.3165]
[1731980774250,3.17006,3154.6,3154.4,0.3165]
[1731980774427,3.17007,3154.5,3154.4,0.3165]
[1731980774628,3.17006,3154.6,3154.4,0.3165]
[1731980774950,3.17007,3154.5,3153.9,0.3165]
[1731980775160,3.17018,3154.4,3153.9,0.3165]
[1731980775466,3.16961,3155.0,3154.4,0.3165]
[1731980775667,3.16936,3155.3,3154.9,0.3165]
[1731980776027,0.7618,3155.9,3155.3,0.3165]
[1731980776223,3.16892,3155.7,3155.3,0.3165]
[1731980776458,0.33113647,3155.8,3155.3,3.48574]
[1731980776624,3.93046,3155.9,3155.3,3.48574]
[1731980777289,3.1685,3156.1,3155.5,0.3165]
[1731980777570,0.763,3156.2,3155.8,0.3165]
[1731980778066,3.16849,3156.1,3155.8,0.3165]
[1731980778575,3.9314,3156.2,3155.9,0.3165]
[1731980778741,0.763,3156.2,3155.9,0.3165]
[1731980778945,3.16848,3156.1,3155.9,0.3165]
[1731980779527,3.16848,3156.1,3155.6,0.3165]
[1731980781237,3.16857,3156.0,3155.6,0.3165]
[1731980782274,3.16857,3156.0,3155.3,3.16922]
[1731980782275,3.16857,3156.0,3155.7,0.3165]
[1731980782446,3.16876,3155.8,3155.7,0.3165]
[1731980783333,3.169,3155.6,3155.1,0.3165]
[1731980784543,3.169,3155.6,3155.1,0.37852777]
[1731980784744,3.169,3155.6,3155.2,0.3165]
[1731980785131,3.169,3155.6,3155.1,0.3165]
[1731980787058,4.61726185,3156.1,3154.2,3.0]
[1731980787059,0.7756,3155.5,3154.8,0.3165]
[1731980787272,3.16917,3155.4,3154.8,0.3165]
[1731980787930,3.16954,3155.1,3154.8,0.3165]
[1731980788130,3.16964,3155.0,3154.6,0.3165]
[1731980788533,3.94527,3154.9,3154.6,0.3165]
[1731980789152,0.7756,3154.9,3154.6,0.3165]
[1731980789374,0.7756,3154.9,3154.5,0.3165]
[1731980789532,0.7756,3154.9,3154.5,3.48657]
[1731980789732,0.459,3154.9,3154.6,0.3165]
[1731980790443,0.459,3154.9,3154.5,0.3165]
[1731980790842,3.62873,3154.9,3154.5,0.3165]
[1731980791044,3.16978,3154.8,3154.5,0.3165]
[1731980791556,3.16978,3154.8,3154.4,0.3165]
[1731980792078,3.62874,3154.9,3154.4,0.3165]
[1731980792233,0.459,3154.9,3154.4,0.3165]
[1731980792434,0.459,3154.9,3154.5,0.3165]
[1731980792636,3.0,3155.1,3154.7,0.3165]
[1731980793381,3.16958,3155.0,3154.7,0.3165]
[1731980793733,3.16958,3155.0,3154.5,0.3165]
[1731980793973,3.16985,3154.8,3154.5,0.3165]
[1731980794146,3.16988,3154.7,3154.5,0.3165]
[1731980794772,3.16988,3154.7,3154.3,0.3165]
[1731980795777,0.787,3154.8,3154.4,0.3165]
[1731980795998,3.16962,3155.0,3154.4,3.48661]
[1731980796135,0.7892,3155.2,3154.7,3.48636]
[1731980796332,0.7892,3155.2,3154.7,0.3165]
[1731980796684,3.0,3155.1,3154.7,0.3165]
[1731980797477,3.0,3155.1,3154.6,0.3165]
[1731980797478,6.1695,3155.1,3154.6,0.3165]
[1731980798446,3.16968,3154.9,3154.6,0.3165]
[1731980798675,3.0,3155.1,3154.4,3.48657]
[1731980798980,3.0,3155.1,3154.6,0.3165]
[1731980799536,6.16949,3155.1,3154.6,0.3165]
[1731980800375,3.7892,3155.2,3154.7,3.48627]
[1731980800581,0.8065,3155.6,3155.1,0.3165]
[1731980800932,3.16891,3155.7,3155.1,3.48596]
[1731980801134,3.169,3155.6,3155.1,0.3165]
[1731980801382,0.8065,3155.8,3155.1,0.3165]
[1731980801590,3.16972,3154.9,3154.4,0.3165]
[1731980803383,3.16917,3155.4,3155.0,0.3165]
[1731980803738,3.16927,3155.3,3155.0,0.3165]
[1731980804390,3.16927,3155.3,3153.3,0.09834172]
[1731980804391,3.16917,3155.4,3154.8,0.3165]
[1731980804616,3.16917,3155.4,3154.3,3.17023]
[1731980804617,0.03174954,3154.8,3154.4,0.3165]
[1731980806786,0.03174954,3154.8,3154.6,0.3165]
[1731980806980,0.03174954,3154.9,3154.6,0.3165]
[1731980808237,0.03174954,3154.9,3154.4,0.3165]
[1731980808373,3.20141954,3154.9,3154.4,0.3165]
[1731980809086,0.03174954,3154.9,3154.4,3.48666]
[1731980811614,3.20147954,3154.9,3154.4,0.3165]
[1731980812292,0.03174954,3154.7,3154.4,0.3165]
[1731980812912,3.20141954,3154.9,3154.4,0.3165]
[1731980813781,0.03174954,3154.7,3154.4,0.3165]
[1731980814016,0.03174954,3154.7,3154.3,2.85281]
[1731980814323,0.03174954,3154.7,3154.3,0.3165]
[1731980814571,0.03174954,3154.6,3154.3,0.3165]
[1731980814712,2.88503954,3154.7,3154.2,3.48684]
[1731980814887,6.33941,3154.9,3154.2,3.48684]
[1731980815096,3.16967,3154.9,3154.3,0.3165]
[1731980815317,6.33942,3154.9,3154.3,0.3165]
[1731980815936,3.16978,3154.8,3154.3,0.3165]
[1731980816329,3.16967,3154.9,3154.3,3.48676]
[1731980816650,3.16978,3154.8,3154.3,0.3165]
[1731980817629,3.1699,3154.7,3154.3,0.3165]
[1731980818260,3.1701,3154.5,3154.3,0.3165]
[1731980818565,3.1701,3154.5,3154.4,0.3165]
[1731980819265,6.9527,3154.5,3154.4,0.28475073]
[1731980819476,3.17129,3153.3,3152.8,0.3165]
[1731980819779,3.17139,3153.2,3152.8,0.3165]
[1731980819915,3.95395,3153.3,3152.8,0.3165]
[1731980820362,3.17139,3153.2,3152.8,0.3165]
[1731980820719,3.17148,3153.1,3152.8,0.3165]
[1731980821059,3.17139,3153.2,3152.8,0.3165]
[1731980821266,3.17168,3152.9,3152.5,0.3165]
[1731980821613,0.7826,3153.3,3152.5,0.3165]
[1731980822011,3.17178,3152.8,3152.5,0.3165]
[1731980822070,3.17198,3152.6,3152.5,0.3165]
[1731980822323,3.17208,3152.5,3152.2,0.3165]
[1731980822725,3.94882,3152.8,3152.2,0.3165]
[1731980822991,3.17201,3152.6,3152.2,0.3165]
[1731980823499,3.17188,3152.7,3152.2,0.3165]
[1731980823689,3.17205,3152.6,3152.2,0.3165]
[1731980823957,3.17188,3152.7,3152.2,0.3165]
[1731980824126,3.17199,3152.6,3152.2,0.3165]
[1731980824693,0.777,3152.8,3152.2,0.3165]
[1731980825030,3.17179,3152.8,3152.2,0.3165]
[1731980825176,3.1717,3152.9,3152.2,3.48888]
[1731980825522,3.17179,3152.8,3152.2,4.186673]
[1731980825747,3.0,3153.0,3152.4,3.17211]
[1731980825996,3.17144,3153.2,3152.5,3.17207]
[1731980826989,3.93485,3153.4,3152.6,3.17193]
[1731980826990,3.17132,3153.3,3152.6,3.17193]
[1731980827190,0.7636,3153.4,3152.8,0.3165]
[1731980827586,3.17115,3153.5,3152.8,3.48828]
[1731980827832,3.17121,3153.4,3152.8,3.48828]
[1731980827983,3.17117,3153.5,3152.9,3.17167]
[1731980828187,3.17118,3153.4,3152.8,1.014176]
[1731980828445,0.7636,3153.6,3152.8,4.185856]
[1731980828598,3.93459,3153.6,3153.0,3.17156]
[1731980828942,3.17099,3153.6,3153.0,3.17156]
[1731980829387,3.17099,3153.6,3153.1,3.17148]
[1731980829587,3.93371,3153.8,3153.2,3.17134]
[1731980829829,3.93371,3153.8,3153.3,0.3165]
[1731980829830,3.0,3153.8,3153.3,0.3165]
[1731980830056,3.0,3153.9,3153.3,0.3165]
[1731980830203,3.17087,3153.8,3153.3,0.3165]
[1731980831353,3.0,3153.9,3153.3,0.3165]
[1731980831495,3.0,3153.9,3153.4,3.17117]
[1731980832642,0.8083,3154.1,3153.5,3.17107]
[1731980832934,3.95268,3154.4,3153.9,0.3165]
[1731980833148,3.95268,3154.4,3153.9,0.633]
[1731980834155,3.17034,3154.3,3153.9,0.633]
[1731980834717,2.85374,3154.3,3153.9,0.3164]
[1731980834969,3.95085,3154.1,3154.0,0.3163]
[1731980835670,6.95085,3154.1,3154.0,0.3163]
[1731980835810,0.7803,3154.1,3153.3,0.3163]
[1731980836167,3.17078,3153.8,3153.3,0.3163]
[1731980836759,3.17077,3153.9,3153.3,3.48757]
[1731980837066,3.95078,3154.1,3153.0,3.17154]
[1731980837067,3.17106,3153.6,3153.4,0.3163]
[1731980837616,3.17107,3153.5,3153.4,0.3163]
[1731980837814,3.98567,3153.5,3153.4,0.3163]
[1731980839044,3.98567,3153.5,3153.1,0.3163]
[1731980839876,3.17095,3153.7,3153.1,0.3163]
[1731980840062,3.95952,3153.8,3153.3,0.3163]
[1731980840370,3.17089,3153.7,3153.3,0.3163]
[1731980841019,3.17106,3153.6,3153.1,3.48777]
[1731980841341,3.17106,3153.6,3153.3,0.3163]
[1731980841342,3.17099,3153.6,3153.3,0.3163]
[1731980842155,3.17099,3153.6,3153.2,0.3165]
[1731980842493,3.95952,3153.8,3153.2,0.3165]
[1731980843168,3.17099,3153.6,3153.2,0.3165]
[1731980843366,3.95952,3153.8,3153.2,3.48785]
[1731980843580,3.17058,3154.0,3153.4,3.48766]
[1731980844264,3.7796,3154.1,3153.6,0.3165]
[1731980844469,3.94982,3154.4,3153.6,3.4874]
[1731980844686,3.17029,3154.3,3153.8,0.3165]
[1731980844999,3.17038,3154.2,3153.8,0.3165]
[1731980845990,3.17038,3154.2,3153.5,0.3165]
[1731980846148,3.17038,3154.2,3153.5,3.8711406]
[1731980846598,3.17038,3154.2,3153.7,0.3165]
[1731980847276,3.94982,3154.4,3153.7,0.3165]
[1731980847277,3.9498,3154.4,3153.7,0.3165]
[1731980847900,3.9498,3154.4,3153.9,0.3165]
[1731980848508,0.7796,3154.4,3153.9,3.48714]
[1731980850913,3.94979,3154.4,3153.9,3.48714]
[1731980851104,3.94979,3154.4,3153.7,0.3165]
[1731980851400,3.17038,3154.2,3153.9,0.3165]
[1731980852084,3.94979,3154.4,3153.9,0.3165]
[1731980852208,3.1703,3154.3,3153.9,0.3165]
[1731980852499,3.94979,3154.4,3153.9,0.3165]
[1731980853004,3.17033,3154.3,3154.0,0.3165]
[1731980853503,3.17047,3154.1,3154.0,0.3165]
[1731980854068,3.17064,3154.0,3153.5,0.3165]
[1731980854705,0.8198,3153.9,3153.5,0.3165]
[1731980855169,3.99054,3153.9,3153.3,0.3165]
[1731980855476,3.99054,3153.9,3153.3,3.48775]
[1731980855588,3.99054,3153.9,3153.3,0.3165]
[1731980857288,3.99054,3153.9,3153.5,0.20662857]
[1731980857495,3.99054,3153.9,3153.5,0.3165]
[1731980857920,0.8198,3153.9,3153.5,0.3165]
[1731980858428,0.8198,3153.9,3153.3,0.3165]
[1731980858603,3.17084,3153.8,3153.3,0.3165]
[1731980859420,0.8198,3153.9,3153.0,0.3165]
[1731980859421,3.17118,3153.4,3153.0,0.3165]
[1731980859722,3.1711,3153.5,3153.3,0.3165]
[1731980859925,3.17104,3153.6,3153.3,0.3165]
[1731980859926,3.96518,3153.4,3153.3,0.3165]
[1731980860711,3.17128,3153.3,3152.8,0.3165]
[1731980861045,3.96524,3153.4,3152.8,3.837089]
[1731980861253,7.78191501,3154.0,3152.8,3.837089]
[1731980861254,3.17085,3153.8,3153.2,3.4878]
[1731980861454,3.1709,3153.7,3153.4,0.3165]
[1731980862524,3.17107,3153.5,3153.4,0.3165]
[1731980863541,3.17133,3153.3,3152.8,0.3165]
[1731980863707,3.17149,3153.1,3152.8,0.3165]
[1731980864148,0.7993,3153.4,3152.8,0.3165]
[1731980864359,3.17138,3153.2,3152.6,0.3165]
[1731980864507,3.1716,3153.0,3152.6,0.3165]
[1731980864819,2.85489,3153.1,3152.6,0.3165]
[1731980865019,3.17159,3153.0,3152.6,0.3165]
[1731980865555,3.17159,3153.0,3152.5,0.3165]
[1731980866861,3.17168,3152.9,3152.5,0.3165]
[1731980869173,3.17127,3153.4,3152.3,0.3165]
[1731980869342,3.17178,3152.8,3152.3,0.3165]
[1731980870330,3.17178,3152.8,3152.3,3.48875]
[1731980870732,0.7643,3153.3,3152.8,0.3165]
[1731980870934,0.7643,3153.3,3153.0,0.3165]
[1731980871963,0.7643,3153.3,3152.9,0.3165]
[1731980872161,3.93492,3153.5,3152.9,0.3165]
[1731980872824,3.93492,3153.5,3152.9,3.4881]
[1731980873411,11.64588121,3154.0,3153.2,3.48779]
[1731980873412,5.42893329,3153.8,3153.2,3.48779]
[1731980873614,0.7938,3153.8,3153.4,0.3165]
[1731980874068,3.17088,3153.7,3153.4,0.3165]
[1731980874414,0.7938,3153.8,3153.4,0.3165]
[1731980874767,0.7938,3153.8,3153.3,0.3165]
[1731980875075,3.64802,3153.8,3153.3,0.3165]
[1731980875234,3.17088,3153.7,3153.3,0.3165]
[1731980875735,0.4772,3153.8,3153.3,3.48773]
[1731980875917,5.7404617,3154.1,3153.9,0.3165]
[1731980876183,3.17034,3154.3,3153.9,0.3165]
[1731980876184,4.63735498,3154.3,3153.9,0.3165]
[1731980876359,0.7721,3154.4,3153.9,3.48716]
[1731980876659,3.94227,3154.4,3153.9,3.48716]
[1731980877564,0.7721,3154.4,3154.0,3.48706]
[1731980878267,3.17007,3154.5,3154.0,3.48706]
[1731980878650,3.17007,3154.5,3153.9,3.48716]
[1731980878832,3.17026,3154.4,3153.9,0.3165]
[1731980879035,5.40945498,3154.6,3153.9,0.3165]
[1731980879036,3.1703,3154.3,3153.9,0.3165]
[1731980879649,3.1703,3154.3,3153.7,3.17081]
[1731980879650,3.1703,3154.3,3153.8,0.3165]
[1731980879851,3.17018,3154.4,3153.8,3.48726]
[1731980880047,3.17007,3154.5,3153.8,3.48726]
[1731980880373,3.17007,3154.5,3154.0,0.3165]
[1731980880584,5.40832205,3154.6,3154.2,3.17035]
[1731980880791,5.40832205,3154.9,3154.6,0.3165]
[1731980880940,0.7721,3154.9,3154.6,0.3165]
[1731980881787,0.7721,3154.9,3154.7,0.3165]
[1731980882181,3.94179,3154.9,3154.7,0.3165]
[1731980882883,0.7721,3154.9,3154.5,0.3165]
[1731980883692,0.7659,3155.2,3154.7,3.48631]
[1731980883831,4.06665839,3155.5,3154.5,3.17002]
[1731980883832,5.5342082,3155.5,3155.1,3.48597]
[1731980884040,0.89756839,3155.5,3155.3,0.3165]
[1731980884295,0.89756839,3155.5,3155.3,3.4857]
[1731980884940,0.89756839,3155.5,3155.4,3.48567]
[1731980885600,0.33111347,3156.4,3156.0,0.3165]
[1731980885742,3.1681,3156.5,3156.0,0.3165]
[1731980886482,3.16777,3156.8,3156.0,0.3165]
[1731980886662,3.16777,3156.8,3156.1,0.3165]
[1731980886853,0.7915,3156.6,3156.1,0.3165]
[1731980887440,0.7915,3156.6,3156.1,3.48491]
[1731980887873,0.7915,3156.6,3156.4,0.3165]
[1731980888036,3.33242729,3156.9,3156.4,0.3165]
[1731980888037,7.12322729,3156.9,3156.4,0.3165]
[1731980888233,3.95549729,3156.9,3156.4,0.3165]
[1731980888894,3.95549729,3156.9,3156.3,0.3165]
[1731980889289,0.7908,3156.9,3156.5,0.3165]
[1731980889459,0.33111297,3157.0,3156.6,0.3165]
[1731980889783,0.7896,3157.2,3156.6,3.48443]
[1731980890283,0.7896,3157.2,3156.7,3.16785]
[1731980890513,0.7896,3157.2,3156.6,0.3165]
[1731980890686,0.63359605,3157.4,3156.7,0.3165]
[1731980890859,0.63359605,3157.4,3156.7,3.48435]
[1731980891057,0.63359605,3157.4,3157.1,3.16745]
[1731980891891,0.63359605,3157.4,3157.1,3.16738]
[1731980892193,0.63359605,3157.4,3157.2,3.16735]
[1731980892555,0.63359605,3157.4,3157.3,3.16726]
[1731980892646,0.7712,3157.8,3157.3,3.16726]
[1731980893169,3.33102085,3158.0,3157.4,3.16706]
[1731980893352,3.33102085,3158.0,3157.2,3.16735]
[1731980893353,3.33102085,3158.0,3157.3,3.16718]
[1731980893686,3.33102085,3158.0,3157.4,3.16707]
[1731980894047,0.33102085,3158.0,3157.4,3.16707]
[1731980894256,3.0,3157.9,3157.4,3.16707]
[1731980894693,3.16686,3157.7,3157.0,3.16753]
[1731980894843,3.16712,3157.5,3156.7,3.16782]
[1731980895187,0.761,3157.8,3157.2,3.16735]
[1731980895188,3.92777,3157.8,3157.2,3.16735]
[1731980895404,0.761,3157.8,3157.3,3.16725]
[1731980895949,0.761,3157.8,3157.2,3.16736]
[1731980896166,0.761,3157.8,3157.1,3.16742]
[1731980896356,0.761,3157.8,3157.2,3.16731]
[1731980896538,0.761,3157.8,3157.3,3.16724]
[1731980896980,0.761,3157.8,3157.2,3.16731]
[1731980897172,3.9278,3157.8,3157.2,3.16731]
[1731980899199,3.16698,3157.6,3157.0,3.16755]
[1731980899395,3.9278,3157.8,3157.0,3.16755]
[1731980899696,3.16687,3157.7,3157.0,3.16755]
[1731980900106,3.9278,3157.8,3157.1,3.16746]
[1731980900402,3.16687,3157.7,3157.1,3.16746]
[1731980900993,3.16709,3157.5,3156.9,3.16765]
[1731980901110,3.16713,3157.5,3156.5,3.16799]
[1731980901405,3.16718,3157.4,3156.7,3.16782]
[1731980901793,0.761,3157.8,3156.9,3.16759]
[1731980902002,3.16688,3157.7,3157.0,3.16748]
[1731980902469,3.16688,3157.7,3156.5,0.04932954]
[1731980902677,3.16686,3157.7,3156.5,0.04932954]
[1731980902870,3.16702,3157.6,3156.9,3.16757]
[1731980903125,3.16725,3157.4,3156.7,3.16779]
[1731980903419,3.16725,3157.4,3156.6,3.1679]
[1731980903420,3.16743,3157.2,3156.6,3.16794]
[1731980904006,3.1672,3157.4,3156.6,3.16794]
[1731980904316,0.761,3157.8,3156.9,3.16764]
[1731980904317,3.16698,3157.6,3156.9,3.16764]
[1731980904469,3.16707,3157.5,3156.9,3.16764]
[1731980904676,3.16707,3157.5,3157.0,0.3165]
[1731980904677,2.85047,3157.5,3157.0,0.3165]
[1731980905791,2.85047,3157.5,3157.1,0.3165]
[1731980906834,3.16758,3157.0,3156.6,0.3165]
[1731980906976,3.16686,3157.7,3156.6,0.3165]
[1731980906977,3.16786,3156.7,3156.6,0.3165]
[1731980907925,3.16797,3156.6,3156.1,0.3165]
[1731980908220,3.16768,3156.9,3156.3,0.3165]
[1731980908398,6.33544,3156.9,3156.3,0.3165]
[1731980908918,3.16793,3156.7,3156.3,0.3165]
[1731980909416,3.16793,3156.7,3156.1,0.3165]
[1731980909921,3.16793,3156.7,3156.1,3.48496]
[1731980910591,3.16801,3156.6,3156.2,0.3165]
[1731980910798,3.97301,3156.6,3156.2,0.3165]
[1731980911295,3.16806,3156.5,3156.2,0.3165]
[1731980911493,3.16826,3156.3,3156.2,0.3165]
[1731980912719,3.16806,3156.5,3155.4,0.3165]
[1731980912939,3.16878,3155.8,3155.4,0.3165]
[1731980913586,3.16906,3155.5,3155.4,0.3165]
[1731980913834,3.16906,3155.5,3154.9,0.3165]
[1731980914186,3.16918,3155.4,3154.9,0.3165]
[1731980914613,3.16935,3155.3,3154.9,0.3165]
[1731980914924,3.16918,3155.4,3155.0,0.3165]
[1731980915221,3.16927,3155.3,3155.0,0.3165]
[1731980915816,3.16927,3155.3,3154.8,0.3165]
[1731980916015,3.16938,3155.2,3154.8,0.3165]
[1731980916807,3.16938,3155.2,3154.7,0.3165]
[1731980917253,3.16951,3155.1,3154.7,0.3165]
[1731980917417,3.16938,3155.2,3154.7,0.3165]
[1731980917683,3.16882,3155.8,3155.2,0.3165]
[1731980917684,0.7535,3155.8,3155.2,0.3165]
[1731980917821,3.16859,3156.0,3155.4,0.3165]
[1731980918024,3.16868,3155.9,3155.4,0.3165]
[1731980919157,3.16859,3156.0,3155.6,0.3165]
[1731980919505,3.16838,3156.2,3155.6,0.3165]
[1731980919864,3.16838,3156.2,3155.7,0.3165]
[1731980920209,3.93549,3156.4,3155.7,0.3165]
[1731980920210,3.93549,3156.4,3155.7,3.48529]